fUSD/lending_fUSD_20240719
["ID","MTS","AMOUNT","RATE_DAILY","PERIOD"]
[332625896,1721374255448,-500.0,0.00024,2]
[332625897,1721374255457,-500.0,0.00024,2]
[332625898,1721374255467,-500.0,0.00024,2]
[332625899,1721374255476,-500.0,0.00024,2]
[332625900,1721374255485,-500.0,0.00024,2]
[332625901,1721374255495,-500.0,0.00024,2]
[332625902,1721374255505,-500.0,0.00024,2]
[332625903,1721374255514,-500.0,0.00024,2]
[332625904,1721374255523,-500.0,0.00024,2]
[332625905,1721374255533,-500.0,0.00024,2]
[332625906,1721374255542,-500.0,0.00024,2]
[332625907,1721374255552,-500.0,0.00024,2]
[332625908,1721374255562,-500.0,0.00024,2]
[332625909,1721374255572,-500.0,0.00024,2]
[332625910,1721374255583,-500.0,0.00024,2]
[332625911,1721374255592,-500.0,0.00024,2]
[332625912,1721374255601,-500.0,0.00024,2]
[332625913,1721374255611,-500.0,0.00024,2]
[332625914,1721374255622,-500.0,0.00024,2]
[332625915,1721374255633,-500.0,0.00024,2]
[332625916,1721374255644,-500.0,0.00024,2]
[332625917,1721374255654,-500.0,0.00024,2]
[332625918,1721374255664,-500.0,0.00024,2]
[332625919,1721374255674,-500.0,0.00024,2]
[332625920,1721374255684,-500.0,0.00024,2]
[332625921,1721374255696,-500.0,0.00024,2]
[332625922,1721374255705,-500.0,0.00024,2]
[332625923,1721374255716,-500.0,0.00024,2]
[332625924,1721374255727,-500.0,0.00024,2]
[332625925,1721374255736,-500.0,0.00024,2]
[332625926,1721374255746,-500.0,0.00024,2]
[332625927,1721374255755,-500.0,0.00024,2]
[332625928,1721374255765,-500.0,0.00024,2]
[332625929,1721374255774,-500.0,0.00024,2]
[332625930,1721374255784,-500.0,0.00024,2]
[332625931,1721374255793,-500.0,0.00024,2]
[332625932,1721374255803,-500.0,0.00024,2]
[332625933,1721374255813,-500.0,0.00024,2]
[332625934,1721374255823,-500.0,0.00024,2]
[332625935,1721374255833,-500.0,0.00024,2]
[332625936,1721374255843,-500.0,0.00024,2]
[332625937,1721374255852,-500.0,0.00024,2]
[332625938,1721374255862,-500.0,0.00024,2]
[332625939,1721374255871,-500.0,0.00024,2]
[332625940,1721374255881,-500.0,0.00024,2]
[332625941,1721374255890,-500.0,0.00024,2]
[332625942,1721374255900,-500.0,0.00024,2]
[332625943,1721374255910,-500.0,0.00024,2]
[332625944,1721374255919,-500.0,0.00024,2]
[332625945,1721374255929,-500.0,0.00024,2]
[332625946,1721374255938,-500.0,0.00024,2]
[332625947,1721374255947,-500.0,0.00024,2]
[332625948,1721374255957,-500.0,0.00024,2]
[332625949,1721374255967,-500.0,0.00024,2]
[332625950,1721374255980,-500.0,0.00024,2]
[332625951,1721374255990,-500.0,0.00024,2]
[332625952,1721374255999,-500.0,0.00024,2]
[332625953,1721374256009,-500.0,0.00024,2]
[332625954,1721374256019,-500.0,0.00024,2]
[332625955,1721374256030,-500.0,0.00024,2]
[332625956,1721374256041,-500.0,0.00024,2]
[332625957,1721374256052,-500.0,0.00024,2]
[332625958,1721374256063,-500.0,0.00024,2]
[332625959,1721374256073,-500.0,0.00024,2]
[332625960,1721374256083,-500.0,0.00024,2]
[332625961,1721374256093,-500.0,0.00024,2]
[332625962,1721374256105,-500.0,0.00024,2]
[332625963,1721374256117,-500.0,0.00024,2]
[332625964,1721374256127,-500.0,0.00024,2]
[332625965,1721374256137,-500.0,0.00024,2]
[332625966,1721374256146,-500.0,0.00024,2]
[332625967,1721374256155,-500.0,0.00024,2]
[332625968,1721374256165,-500.0,0.00024,2]
[332625969,1721374256175,-500.0,0.00024,2]
[332625970,1721374256186,-500.0,0.00024,2]
[332625971,1721374256196,-500.0,0.00024,2]
[332625972,1721374256206,-500.0,0.00024,2]
[332625973,1721374256216,-500.0,0.00024,2]
[332625974,1721374256226,-500.0,0.00024,2]
[332625975,1721374256235,-500.0,0.00024,2]
[332625976,1721374256245,-500.0,0.00024,2]
[332625977,1721374256255,-500.0,0.00024,2]
[332625978,1721374256264,-500.0,0.00024,2]
[332625979,1721374256273,-500.0,0.00024,2]
[332625980,1721374256388,-500.0,0.00024,2]
[332625981,1721374256397,-500.0,0.00024,2]
[332625982,1721374256408,-500.0,0.00024,2]
[332625983,1721374256417,-500.0,0.00024,2]
[332625984,1721374256426,-500.0,0.00024,2]
[332625985,1721374256435,-500.0,0.00024,2]
[332625986,1721374256444,-500.0,0.00024,2]
[332625987,1721374256453,-500.0,0.00024,2]
[332625988,1721374256462,-500.0,0.00024,2]
[332625989,1721374256472,-500.0,0.00024,2]
[332625990,1721374256481,-500.0,0.00024,2]
[332625991,1721374256491,-500.0,0.00024,2]
[332625992,1721374256500,-500.0,0.00024,2]
[332625993,1721374256509,-500.0,0.00024,2]
[332625994,1721374256519,-500.0,0.00024,2]
[332625995,1721374256528,-500.0,0.00024,2]
[332625996,1721374256538,-500.0,0.00024,2]
[332625997,1721374256547,-500.0,0.00024,2]
[332625998,1721374256556,-500.0,0.00024,2]
[332625999,1721374256566,-500.0,0.00024,2]
[332626000,1721374256576,-500.0,0.00024,2]
[332626001,1721374256587,-500.0,0.00024,2]
[332626002,1721374256598,-500.0,0.00024,2]
[332626003,1721374256608,-500.0,0.00024,2]
[332626004,1721374256618,-500.0,0.00024,2]
[332626005,1721374256627,-500.0,0.00024,2]
[332626006,1721374256636,-500.0,0.00024,2]
[332626007,1721374256645,-500.0,0.00024,2]
[332626008,1721374256654,-500.0,0.00024,2]
[332626009,1721374256664,-500.0,0.00024,2]
[332626010,1721374256674,-500.0,0.00024,2]
[332626011,1721374256683,-500.0,0.00024,2]
[332626012,1721374256693,-500.0,0.00024,2]
[332626013,1721374256703,-500.0,0.00024,2]
[332626014,1721374256713,-500.0,0.00024,2]
[332626015,1721374256723,-500.0,0.00024,2]
[332626016,1721374256732,-500.0,0.00024,2]
[332626017,1721374256741,-500.0,0.00024,2]
[332626018,1721374256751,-500.0,0.00024,2]
[332626019,1721374256761,-500.0,0.00024,2]
[332626020,1721374256771,-500.0,0.00024,2]
[332626021,1721374256780,-500.0,0.00024,2]
[332626022,1721374256790,-500.0,0.00024,2]
[332626023,1721374256799,-500.0,0.00024,2]
[332626024,1721374256808,-500.0,0.00024,2]
[332626025,1721374256818,-500.0,0.00024,2]
[332626026,1721374256828,-500.0,0.00024,2]
[332626027,1721374256838,-500.0,0.00024,2]
[332626028,1721374256847,-500.0,0.00024,2]
[332626029,1721374256856,-500.0,0.00024,2]
[332626030,1721374256865,-500.0,0.00024,2]
[332626031,1721374256875,-500.0,0.00024,2]
[332626032,1721374256884,-500.0,0.00024,2]
[332626033,1721374256894,-500.0,0.00024,2]
[332626034,1721374256904,-151.0,0.00024,7]
[332626035,1721374256913,-151.0,0.00024,7]
[332626036,1721374256923,-155.0,0.00024,7]
[332626037,1721374256932,-334.156083,0.00024,7]
[332626038,1721374256942,-438.217861,0.00024,7]
[332626039,1721374256952,-334.156083,0.00024,7]
[332626040,1721374256963,-318.62419857,0.0002408,2]
[332626041,1721374256973,-10000.0,0.000241,6]
[332626042,1721374256982,-201.0,0.0002415,2]
[332626043,1721374256991,-752.3544779,0.00024151,2]
[332626044,1721374257001,-173.0,0.00024164,2]
[332626045,1721374257011,-151.0,0.00024187,2]
[332626046,1721374257021,-800.0,0.00024382,2]
[332626047,1721374257032,-4300.0,0.00024382,2]
[332626048,1721374257042,-4000.0,0.00024382,2]
[332626049,1721374257051,-500.0,0.00024382,2]
[332626050,1721374257061,-1000.0,0.00024382,2]
[332626051,1721374257070,-500.0,0.00024383,2]
[332626052,1721374257081,-235.0,0.0002439,2]
[332626053,1721374257090,-150.29,0.00024447,2]
[332626054,1721374257099,-152.0,0.000246,4]
[332626055,1721374257110,-153.83995576,0.000246,5]
[332626056,1721374257123,-4094.02,0.000247,2]
[332626057,1721374257132,-11759.03,0.000247,2]
[332626058,1721374257142,-231.90475211,0.000247,2]
[332626059,1721374257152,-395.88369,0.000247,2]
[332626060,1721374257164,-201.0,0.0002486,2]
[332626061,1721374257173,-200.0,0.0002486,2]
[332626062,1721374257183,-1016.98020142,0.00024868,2]
[332626063,1721374257195,-150.0,0.0002493,3]
[332626064,1721374257206,-800.0,0.0002493,2]
[332626065,1721374257215,-4300.0,0.0002493,2]
[332626066,1721374257225,-4000.0,0.0002493,2]
[332626067,1721374257235,-500.0,0.0002493,2]
[332626068,1721374257244,-1000.0,0.0002493,2]
[332626069,1721374257253,-151.0,0.00024983,7]
[332626070,1721374257262,-296.382727,0.00024983,7]
[332626071,1721374257272,-260.573896,0.00024983,7]
[332626072,1721374257281,-260.573896,0.00024983,7]
[332626073,1721374257290,-151.0,0.00024983,7]
[332626074,1721374257300,-155.18522,0.00024983,7]
[332626075,1721374257309,-151.0,0.00024983,7]
[332626076,1721374257318,-644822.1958691,0.00025,2]
[332626077,1721374257327,-2000.0,0.00025,2]
[332626078,1721374257339,-2000.0,0.00025,2]
[332626079,1721374257348,-1000.0,0.00025,10]
[332626080,1721374257357,-155.05223239,0.00025,2]
[332626081,1721374257367,-155.06445851,0.00025,2]
[332626082,1721374257377,-273.87352655,0.00025,2]
[332626083,1721374257386,-935.74410291,0.00025,2]
[332626084,1721374257395,-394.95982299,0.00025,2]
[332626085,1721374257405,-2875.45286296,0.00025,2]
[332626086,1721374257414,-843261.39308102,0.00025,2]
[332626087,1721374257424,-326.64008644,0.00025,2]
[332626088,1721374257433,-3000.0,0.00025,3]
[332626089,1721374257443,-226.44535862,0.00025,2]
[332626090,1721374257452,-9000.0,0.00025,20]
[332626091,1721374257462,-985.0,0.00025,8]
[332626092,1721374257471,-400.0,0.00025,2]
[332626093,1721374257480,-780.95762705,0.00025,2]
[332626094,1721374257489,-173.102922,0.00025,2]
[332626095,1721374257498,-151.0,0.00025,7]
[332626096,1721374257508,-151.0,0.00025,7]
[332626097,1721374257517,-151.0,0.00025,7]
[332626098,1721374257527,-200.0,0.00025,2]
[332626099,1721374257536,-151.0,0.00025,7]
[332626100,1721374257545,-260.573896,0.00025,7]
[332626101,1721374257555,-260.573896,0.00025,7]
[332626102,1721374257565,-150.0,0.00025,6]
[332626103,1721374257574,-151.0,0.00025,7]
[332626104,1721374257586,-151.0,0.00025,7]
[332626105,1721374257595,-151.0,0.00025,7]
[332626106,1721374257604,-151.0,0.00025,7]
[332626107,1721374257614,-151.0,0.00025,7]
[332626108,1721374257625,-169.242539,0.00025,7]
[332626109,1721374257635,-334.156083,0.00025,7]
[332626110,1721374257645,-334.156083,0.00025,7]
[332626111,1721374257656,-438.217861,0.00025,7]
[332626112,1721374257666,-334.156083,0.00025,7]
[332626113,1721374257675,-438.217861,0.00025,7]
[332626114,1721374257687,-334.156083,0.00025,7]
[332626115,1721374257699,-500.0,0.00025008,2]
[332626116,1721374257710,-500.0,0.00025008,2]
[332626117,1721374257721,-500.0,0.00025008,2]
[332626118,1721374257731,-500.0,0.00025008,2]
[332626119,1721374257741,-500.0,0.00025008,2]
[332626120,1721374257752,-500.0,0.00025008,2]
[332626121,1721374257762,-500.0,0.00025008,2]
[332626122,1721374257772,-500.0,0.00025008,2]
[332626123,1721374257781,-500.0,0.00025008,2]
[332626124,1721374257792,-500.0,0.00025008,2]
[332626125,1721374257802,-500.0,0.00025008,2]
[332626126,1721374257811,-500.0,0.00025008,2]
[332626127,1721374257822,-500.0,0.00025008,2]
[332626128,1721374257833,-500.0,0.00025008,2]
[332626129,1721374257842,-500.0,0.00025008,2]
[332626130,1721374257851,-500.0,0.00025008,2]
[332626131,1721374257861,-500.0,0.00025008,2]
[332626132,1721374257871,-500.0,0.00025008,2]
[332626133,1721374257880,-635.21110361,0.00025008,2]
[332626134,1721374257890,-500.0,0.00025008,2]
[332626135,1721374257900,-500.0,0.00025008,2]
[332626136,1721374257910,-500.0,0.00025008,2]
[332626137,1721374257920,-500.0,0.00025008,2]
[332626138,1721374257931,-500.0,0.00025008,2]
[332626139,1721374257942,-500.0,0.00025008,2]
[332626140,1721374257953,-500.0,0.00025008,2]
[332626141,1721374257966,-500.0,0.00025008,2]
[332626142,1721374257976,-500.0,0.00025008,2]
[332626143,1721374257988,-500.0,0.00025008,2]
[332626144,1721374257999,-500.0,0.00025008,2]
[332626145,1721374258009,-500.0,0.00025008,2]
[332626146,1721374258020,-500.0,0.00025008,2]
[332626147,1721374258033,-500.0,0.00025008,2]
[332626148,1721374258043,-500.0,0.00025008,2]
[332626149,1721374258052,-500.0,0.00025008,2]
[332626150,1721374258062,-500.0,0.00025008,2]
[332626151,1721374258072,-500.0,0.00025008,2]
[332626152,1721374258082,-500.0,0.00025008,2]
[332626153,1721374258094,-500.0,0.00025008,2]
[332626154,1721374258104,-500.0,0.00025008,2]
[332626155,1721374258117,-500.0,0.00025008,2]
[332626156,1721374258128,-500.0,0.00025008,2]
[332626157,1721374258138,-500.0,0.00025008,2]
[332626158,1721374258150,-500.0,0.00025008,2]
[332626159,1721374258160,-500.0,0.00025008,2]
[332626160,1721374258171,-500.0,0.00025008,2]
[332626161,1721374258184,-500.0,0.00025008,2]
[332626162,1721374258194,-500.0,0.00025008,2]
[332626163,1721374258206,-500.0,0.00025008,2]
[332626164,1721374258217,-500.0,0.00025008,2]
[332626165,1721374258227,-500.0,0.00025008,2]
[332626166,1721374258236,-500.0,0.00025008,2]
[332626167,1721374258246,-500.0,0.00025008,2]
[332626168,1721374258256,-500.0,0.00025008,2]
[332626169,1721374258266,-500.0,0.00025008,2]
[332626170,1721374258276,-500.0,0.00025008,2]
[332626171,1721374258286,-500.0,0.00025008,2]
[332626172,1721374258295,-500.0,0.00025008,2]
[332626173,1721374258305,-500.0,0.00025008,2]
[332626174,1721374258314,-500.0,0.00025008,2]
[332626175,1721374258324,-556.99884229,0.00025008,2]
[332626176,1721374258335,-477.24020688,0.00025065,2]
[332626177,1721374258344,-578.05710512,0.00025065,2]
[332626178,1721374258354,-600.0,0.00025065,2]
[332626179,1721374258365,-600.0,0.00025065,2]
[332626180,1721374258375,-455.40954897,0.00025065,2]
[332626181,1721374258386,-162.18711082,0.00025065,2]
[332626182,1721374258395,-300.35135852,0.00025139,2]
[332626183,1721374258405,-400.0,0.00025139,2]
[332626184,1721374258416,-600.0,0.00025157,2]
[332626185,1721374258426,-449.07,0.00025165,2]
[332626186,1721374258437,-500.0,0.00025205,2]
[332626187,1721374258447,-235.0,0.0002524,2]
[332626188,1721374258458,-208.0,0.0002524,2]
[332626189,1721374258468,-150.0,0.00025288,2]
[332626190,1721374258477,-150.0,0.00025288,2]
[332626191,1721374258488,-150.0,0.00025288,2]
[332626192,1721374258498,-150.0,0.00025288,2]
[332626193,1721374258507,-150.0,0.00025288,2]
[332626194,1721374258517,-150.0,0.00025288,2]
[332626195,1721374258528,-150.0,0.00025288,2]
[332626196,1721374258538,-150.0,0.00025288,2]
[332626197,1721374258549,-150.29,0.0002529,2]
[332626198,1721374258558,-214.0,0.0002529,2]
[332626199,1721374258569,-151.0,0.00025311,2]
[332626200,1721374258579,-500.0,0.00025383,2]
[332626201,1721374258589,-800.0,0.00025478,2]
[332626202,1721374258599,-4000.0,0.00025478,2]
[332626203,1721374258609,-4300.0,0.00025478,2]
[332626204,1721374258621,-500.0,0.00025478,2]
[332626205,1721374258632,-1000.0,0.00025478,2]
[332626206,1721374258644,-300.7,0.00025479,2]
[332626207,1721374258654,-201.0,0.0002557,2]
[332626208,1721374258665,-200.0,0.0002557,2]
[332626209,1721374258679,-165.82,0.00025571,2]
[332626210,1721374258691,-500.0,0.00025764,2]
[332626211,1721374258702,-419.88,0.0002578,2]
[332626212,1721374258711,-419.88,0.0002578,2]
[332626213,1721374258720,-419.88,0.0002578,2]
[332626214,1721374258730,-419.88,0.0002578,2]
[332626215,1721374258742,-419.88,0.0002578,2]
[332626216,1721374258753,-418.08,0.0002578,2]
[332626217,1721374258764,-787.68,0.00025875,2]
[332626218,1721374258775,-850.31,0.00025877,2]
[332626219,1721374258787,-425.19,0.00025877,2]
[332626220,1721374258798,-355.55,0.00025877,2]
[332626221,1721374258809,-4094.02,0.000259,2]
[332626222,1721374258820,-150.2811588,0.000259,2]
[332626223,1721374258832,-150.28115843,0.000259,2]
[332626224,1721374258841,-150.28115843,0.000259,2]
[332626225,1721374258851,-150.28115843,0.000259,2]
[332626226,1721374258861,-150.28115843,0.000259,2]
[332626227,1721374258871,-150.28115843,0.000259,2]
[332626228,1721374258881,-150.28115843,0.000259,2]
[332626229,1721374258891,-150.28115843,0.000259,2]
[332626230,1721374258902,-150.28115843,0.000259,2]
[332626231,1721374258913,-150.28115843,0.000259,2]
[332626232,1721374258923,-150.28115843,0.000259,2]
[332626233,1721374258934,-150.28115843,0.000259,2]
[332626234,1721374258945,-150.28115843,0.000259,2]
[332626235,1721374258954,-150.28115843,0.000259,2]
[332626236,1721374258964,-150.28115843,0.000259,2]
[332626237,1721374258979,-150.28115843,0.000259,2]
[332626238,1721374258991,-150.28115843,0.000259,2]
[332626239,1721374259001,-150.28115843,0.000259,2]
[332626240,1721374259012,-150.28115843,0.000259,2]
[332626241,1721374259023,-150.28115843,0.000259,2]
[332626242,1721374259034,-150.28115843,0.000259,2]
[332626243,1721374259045,-150.28115843,0.000259,2]
[332626244,1721374259057,-150.28115843,0.000259,2]
[332626245,1721374259069,-395.88369,0.0002595,2]
[332626246,1721374259080,-7674.242824,0.00026,30]
[332626247,1721374259092,-11759.03,0.00026,2]
[332626248,1721374259104,-1900.0,0.00026,30]
[332626249,1721374259118,-4000.0,0.00026026,2]
[332626250,1721374259130,-4300.0,0.00026026,2]
[332626251,1721374259142,-500.0,0.00026026,2]
[332626252,1721374259153,-1000.0,0.00026026,2]
[332626253,1721374259163,-500.0,0.00026027,2]
[332626254,1721374259175,-150.28115843,0.00026046,2]
[332626255,1721374259187,-150.88,0.00026082,2]
[332626256,1721374259197,-150.0,0.00026082,2]
[332626257,1721374259208,-150.0,0.00026082,2]
[332626258,1721374259219,-150.0,0.00026082,2]
[332626259,1721374259231,-150.0,0.00026082,2]
[332626260,1721374259242,-150.0,0.00026082,2]
[332626261,1721374259254,-150.0,0.00026082,2]
[332626262,1721374259264,-150.0,0.00026082,2]
[332626263,1721374259275,-150.0,0.00026082,2]
[332626264,1721374259285,-150.0,0.00026082,2]
[332626265,1721374259295,-235.0,0.0002609,2]
[332626266,1721374259304,-208.0,0.0002609,2]
[332626267,1721374259314,-150.58,0.0002611,2]
[332626268,1721374259323,-150.29,0.00026133,2]
[332626269,1721374259335,-214.0,0.0002614,2]
[332626270,1721374259345,-500.0,0.0002615,2]
[332626271,1721374259354,-150.88,0.00026247,2]
[332626272,1721374259364,-150.0,0.00026247,2]
[332626273,1721374259374,-150.0,0.00026247,2]
[332626274,1721374259383,-201.0,0.0002627,2]
[332626275,1721374259393,-200.0,0.0002627,2]
[332626276,1721374259403,-20386.52,0.000263,7]
[332626277,1721374259413,-10000.0,0.000264,6]
[332626278,1721374259423,-151.0,0.00026435,2]
[332626279,1721374259433,-348.63,0.0002645,2]
[332626280,1721374259443,-150.28115843,0.00026451,2]
[332626281,1721374259453,-371.945488,0.00026476,2]
[332626282,1721374259463,-536.285699,0.00026476,2]
[332626283,1721374259473,-157.063351,0.00026476,2]
[332626284,1721374259483,-825.399125,0.00026476,2]
[332626285,1721374259494,-173.464968,0.00026476,2]
[332626286,1721374259503,-198.673325,0.00026476,2]
[332626287,1721374259514,-164.812469,0.00026476,2]
[332626288,1721374259524,-185.498559,0.00026476,2]
[332626289,1721374259534,-196.833596,0.00026476,2]
[332626290,1721374259545,-178.535545,0.00026476,2]
[332626291,1721374259555,-170.299192,0.00026476,2]
[332626292,1721374259565,-620.58216,0.00026476,2]
[332626293,1721374259575,-472.40063,0.00026476,2]
[332626294,1721374259587,-193.27138,0.00026476,2]
[332626295,1721374259597,-186.108597,0.00026476,2]
[332626296,1721374259607,-177.720322,0.00026476,2]
[332626297,1721374259617,-185.567584,0.00026476,2]
[332626298,1721374259627,-186.976624,0.00026476,2]
[332626299,1721374259638,-448.743898,0.00026476,2]
[332626300,1721374259648,-456.61553229,0.000265,2]
[332626301,1721374259658,-500.0,0.00026543,2]
[332626302,1721374259668,-1000.0,0.00026574,2]
[332626303,1721374259677,-800.0,0.00026574,2]
[332626304,1721374259687,-1105.96,0.00026591,2]
[332626305,1721374259697,-1393.42937676,0.00026609,28]
[332626306,1721374259707,-526.41351292,0.00026631,2]
[332626307,1721374259717,-529.72789881,0.00026632,2]
[332626308,1721374259727,-425.19,0.00026699,2]
[332626309,1721374259737,-529.52,0.00026699,2]
[332626310,1721374259747,-355.55,0.00026699,2]
[332626311,1721374259757,-330.35,0.00026699,2]
[332626312,1721374259767,-529.52,0.00026699,2]
[332626313,1721374259776,-165.19,0.00026699,2]
[332626314,1721374259786,-425.19,0.00026699,2]
[332626315,1721374259796,-165.19,0.00026699,2]
[332626316,1721374259806,-529.52,0.00026699,2]
[332626317,1721374259815,-355.55,0.00026699,2]
[332626318,1721374259826,-355.55,0.00026699,2]
[332626319,1721374259835,-529.52,0.00026699,2]
[332626320,1721374259846,-425.19,0.00026699,2]
[332626321,1721374259855,-529.52,0.00026699,2]
[332626322,1721374259866,-354.71,0.00026699,2]
[332626323,1721374259876,-150.0,0.00026699,2]
[332626324,1721374259885,-150.0,0.00026699,2]
[332626325,1721374259895,-1056.94,0.00026699,2]
[332626326,1721374259906,-425.19,0.00026699,2]
[332626327,1721374259916,-150.0,0.00026699,2]
[332626328,1721374259927,-150.0,0.00026699,2]
[332626329,1721374259937,-150.0,0.00026699,2]
[332626330,1721374259947,-150.0,0.00026699,2]
[332626331,1721374259956,-425.19,0.00026699,2]
[332626332,1721374259967,-150.0,0.00026699,2]
[332626333,1721374259977,-150.0,0.00026699,2]
[332626334,1721374259988,-425.19,0.00026699,2]
[332626335,1721374259999,-150.0,0.00026699,2]
[332626336,1721374260009,-150.0,0.00026699,2]
[332626337,1721374260019,-425.19,0.00026699,2]
[332626338,1721374260029,-150.0,0.00026699,2]
[332626339,1721374260041,-361.47,0.00026699,2]
[332626340,1721374260051,-534.61011815,0.00026746,2]
[332626341,1721374260062,-371.945488,0.00026807,2]
[332626342,1721374260073,-536.285699,0.00026807,2]
[332626344,1721374260297,-825.399125,0.00026807,2]
[332626345,1721374260308,-620.58216,0.00026807,2]
[332626346,1721374260318,-472.40063,0.00026807,2]
[332626347,1721374260327,-448.743898,0.00026807,2]
[332626348,1721374260339,-500.0,0.00026849,2]
[332626349,1721374260349,-150.28115843,0.00026857,2]
[332626350,1721374260359,-600.0,0.00026917,2]
[332626351,1721374260369,-157.063351,0.00026918,2]
[332626352,1721374260379,-235.0,0.0002693,2]
[332626353,1721374260389,-208.0,0.0002693,2]
[332626354,1721374260400,-500.0,0.00026941,2]
[332626355,1721374260410,-150.29,0.00026976,2]
[332626356,1721374260420,-214.0,0.0002698,2]
[332626357,1721374260430,-201.0,0.0002698,2]
[332626358,1721374260440,-200.0,0.0002698,2]
[332626359,1721374260450,-771.78364623,0.00027,10]
[332626360,1721374260460,-110893.86782674,0.00027,7]
[332626361,1721374260469,-450.0,0.00027,2]
[332626362,1721374260478,-1890.397683,0.00027,2]
[332626363,1721374260488,-38031.32037553,0.00027,7]
[332626364,1721374260498,-859.71851558,0.00027037,2]
[332626365,1721374260508,-800.0,0.00027037,2]
[332626366,1721374260518,-4000.0,0.00027122,2]
[332626367,1721374260529,-4300.0,0.00027122,2]
[332626368,1721374260539,-500.0,0.00027122,2]
[332626369,1721374260549,-371.945488,0.00027138,2]
[332626370,1721374260559,-536.285699,0.00027138,2]
[332626371,1721374260569,-825.399125,0.00027138,2]
[332626372,1721374260579,-620.58216,0.00027138,2]
[332626373,1721374260590,-472.40063,0.00027138,2]
[332626374,1721374260600,-448.743898,0.00027138,2]
[332626375,1721374260609,-196.833596,0.00027138,2]
[332626376,1721374260619,-186.976624,0.00027138,2]
[332626377,1721374260629,-4094.02,0.000272,2]
[332626378,1721374260639,-150.28115843,0.00027262,2]
[332626379,1721374260648,-500.0,0.00027345,2]
[332626380,1721374260658,-157.063351,0.00027359,2]
[332626381,1721374260668,-200.0,0.00027397,15]
[332626382,1721374260677,-151.0,0.00027397,7]
[332626383,1721374260687,-11759.03,0.000274,2]
[332626384,1721374260697,-449.07,0.00027452,2]
[332626385,1721374260707,-371.945488,0.00027469,2]
[332626386,1721374260717,-536.285699,0.00027469,2]
[332626387,1721374260726,-825.399125,0.00027469,2]
[332626388,1721374260736,-620.58216,0.00027469,2]
[332626389,1721374260747,-472.40063,0.00027469,2]
[332626390,1721374260757,-448.743898,0.00027469,2]
[332626391,1721374260767,-151.0,0.0002756,3]
[332626392,1721374260777,-20386.52,0.000276,14]
[332626393,1721374260786,-150.28115843,0.00027668,2]
[332626394,1721374260796,-1000.0,0.0002767,2]
[332626395,1721374260806,-800.0,0.0002767,2]
[332626396,1721374260815,-500.0,0.00027671,2]